fUSD/lending_fUSD_20250623
["ID","MTS","AMOUNT","RATE_DAILY","PERIOD"]
[367267778,1750722690261,-500.0,0.00023522,2]
[367267779,1750722690270,-500.0,0.00023522,2]
[367267780,1750722690279,-500.0,0.00023522,2]
[367267781,1750722690289,-500.0,0.00023522,2]
[367267782,1750722690298,-500.0,0.00023522,2]
[367267783,1750722690308,-500.0,0.00023522,2]
[367267784,1750722690317,-500.0,0.00023522,2]
[367267785,1750722690327,-500.0,0.00023522,2]
[367267786,1750722690336,-500.0,0.00023522,2]
[367267787,1750722690345,-500.0,0.00023522,2]
[367267788,1750722690354,-500.0,0.00023522,2]
[367267789,1750722690363,-500.0,0.00023522,2]
[367267790,1750722690373,-500.0,0.00023522,2]
[367267791,1750722690382,-500.0,0.00023522,2]
[367267792,1750722690392,-500.0,0.00023522,2]
[367267793,1750722690402,-500.0,0.00023522,2]
[367267794,1750722690412,-500.0,0.00023522,2]
[367267795,1750722690422,-500.0,0.00023522,2]
[367267796,1750722690431,-500.0,0.00023522,2]
[367267797,1750722690441,-500.0,0.00023522,2]
[367267798,1750722690450,-500.0,0.00023522,2]
[367267799,1750722690460,-500.0,0.00023522,2]
[367267800,1750722690469,-500.0,0.00023522,2]
[367267801,1750722690478,-500.0,0.00023522,2]
[367267802,1750722690488,-500.0,0.00023522,2]
[367267803,1750722690497,-500.0,0.00023522,2]
[367267804,1750722690506,-500.0,0.00023522,2]
[367267805,1750722690516,-500.0,0.00023522,2]
[367267806,1750722690526,-500.0,0.00023522,2]
[367267807,1750722690537,-500.0,0.00023522,2]
[367267808,1750722690547,-500.0,0.00023522,2]
[367267809,1750722690557,-500.0,0.00023522,2]
[367267810,1750722690566,-500.0,0.00023522,2]
[367267811,1750722690575,-500.0,0.00023522,2]
[367267812,1750722690586,-500.0,0.00023522,2]
[367267813,1750722690595,-500.0,0.00023522,2]
[367267814,1750722690606,-500.0,0.00023522,2]
[367267815,1750722690616,-500.0,0.00023522,2]
[367267816,1750722690626,-500.0,0.00023522,2]
[367267817,1750722690636,-500.0,0.00023522,2]
[367267818,1750722690645,-500.0,0.00023522,2]
[367267819,1750722690654,-500.0,0.00023522,2]
[367267820,1750722690664,-500.0,0.00023522,2]
[367267821,1750722690672,-500.0,0.00023522,2]
[367267822,1750722690681,-500.0,0.00023522,2]
[367267823,1750722690691,-500.0,0.00023522,2]
[367267824,1750722690701,-500.0,0.00023522,2]
[367267825,1750722690711,-500.0,0.00023522,2]
[367267826,1750722690721,-500.0,0.00023522,2]
[367267827,1750722690733,-500.0,0.00023522,2]
[367267828,1750722690744,-500.0,0.00023522,2]
[367267829,1750722690755,-500.0,0.00023522,2]
[367267830,1750722690765,-500.0,0.00023522,2]
[367267831,1750722690774,-500.0,0.00023522,2]
[367267832,1750722690783,-500.0,0.00023522,2]
[367267833,1750722690793,-500.0,0.00023522,2]
[367267834,1750722690802,-500.0,0.00023522,2]
[367267835,1750722690812,-500.0,0.00023522,2]
[367267836,1750722690821,-527.0,0.00023522,2]
[367267837,1750722690831,-500.0,0.00023522,2]
[367267838,1750722690848,-500.0,0.00023522,2]
[367267839,1750722690858,-500.0,0.00023522,2]
[367267840,1750722690867,-500.0,0.00023522,2]
[367267841,1750722690877,-500.0,0.00023522,2]
[367267842,1750722690888,-500.0,0.00023522,2]
[367267843,1750722690899,-500.0,0.00023522,2]
[367267844,1750722690907,-500.0,0.00023522,2]
[367267845,1750722690918,-500.0,0.00023522,2]
[367267846,1750722690929,-500.0,0.00023522,2]
[367267847,1750722690939,-500.0,0.00023522,2]
[367267848,1750722690949,-500.0,0.00023522,2]
[367267849,1750722690958,-500.0,0.00023522,2]
[367267850,1750722690968,-500.0,0.00023522,2]
[367267851,1750722690978,-500.0,0.00023522,2]
[367267852,1750722690987,-500.0,0.00023522,2]
[367267853,1750722690996,-500.0,0.00023522,2]
[367267854,1750722691006,-500.0,0.00023522,2]
[367267855,1750722691016,-500.0,0.00023522,2]
[367267856,1750722691025,-500.0,0.00023522,2]
[367267857,1750722691035,-500.0,0.00023522,2]
[367267858,1750722691044,-500.0,0.00023522,2]
[367267859,1750722691053,-500.0,0.00023522,2]
[367267860,1750722691062,-500.0,0.00023522,2]
[367267861,1750722691071,-500.0,0.00023522,2]
[367267862,1750722691080,-500.0,0.00023522,2]
[367267863,1750722691089,-500.0,0.00023522,2]
[367267864,1750722691098,-500.0,0.00023522,2]
[367267865,1750722691108,-500.0,0.00023522,2]
[367267866,1750722691117,-500.0,0.00023522,2]
[367267867,1750722691127,-500.0,0.00023522,2]
[367267868,1750722691136,-500.0,0.00023522,2]
[367267869,1750722691145,-500.0,0.00023522,2]
[367267870,1750722691155,-500.0,0.00023522,2]
[367267871,1750722691164,-500.0,0.00023522,2]
[367267872,1750722691173,-500.0,0.00023522,2]
[367267873,1750722691182,-500.0,0.00023522,2]
[367267874,1750722691191,-500.0,0.00023522,2]
[367267875,1750722691200,-500.0,0.00023522,2]
[367267876,1750722691209,-500.0,0.00023522,2]
[367267877,1750722691219,-500.0,0.00023522,2]
[367267878,1750722691227,-500.0,0.00023522,2]
[367267879,1750722691236,-500.0,0.00023522,2]
[367267880,1750722691246,-500.0,0.00023522,2]
[367267881,1750722691255,-500.0,0.00023522,2]
[367267882,1750722691264,-500.0,0.00023522,2]
[367267883,1750722691273,-500.0,0.00023522,2]
[367267884,1750722691282,-500.0,0.00023522,2]
[367267885,1750722691292,-500.0,0.00023522,2]
[367267886,1750722691301,-500.0,0.00023522,2]
[367267887,1750722691310,-500.0,0.00023522,2]
[367267888,1750722691319,-500.0,0.00023522,2]
[367267889,1750722691328,-500.0,0.00023522,2]
[367267890,1750722691338,-500.0,0.00023522,2]
[367267891,1750722691348,-500.0,0.00023522,2]
[367267892,1750722691357,-500.0,0.00023522,2]
[367267893,1750722691367,-500.0,0.00023522,2]
[367267894,1750722691376,-500.0,0.00023522,2]
[367267895,1750722691385,-500.0,0.00023522,2]
[367267896,1750722691394,-500.0,0.00023522,2]
[367267897,1750722691403,-500.0,0.00023522,2]
[367267898,1750722691413,-500.0,0.00023522,2]
[367267899,1750722691422,-500.0,0.00023522,2]
[367267900,1750722691431,-500.0,0.00023522,2]
[367267901,1750722691440,-500.0,0.00023522,2]
[367267902,1750722691450,-500.0,0.00023522,2]
[367267903,1750722691459,-500.0,0.00023522,2]
[367267904,1750722691468,-500.0,0.00023522,2]
[367267905,1750722691477,-500.0,0.00023522,2]
[367267906,1750722691486,-500.0,0.00023522,2]
[367267907,1750722691496,-500.0,0.00023522,2]
[367267908,1750722691506,-500.0,0.00023522,2]
[367267909,1750722691515,-500.0,0.00023522,2]
[367267910,1750722691525,-500.0,0.00023522,2]
[367267911,1750722691534,-959.0,0.00023522,2]
[367267912,1750722691544,-151.0,0.00023538,2]
[367267913,1750722691554,-162.53329233,0.00023539,2]
[367267914,1750722691563,-305.28807261,0.00023552,2]
[367267915,1750722691573,-4560.06,0.00023554,2]
[367267916,1750722691583,-500.0,0.00023555,2]
[367267917,1750722691592,-500.0,0.00023555,2]
[367267918,1750722691601,-500.0,0.00023555,2]
[367267919,1750722691611,-500.0,0.00023555,2]
[367267920,1750722691620,-500.0,0.00023555,2]
[367267921,1750722691629,-500.0,0.00023555,2]
[367267922,1750722691638,-500.0,0.00023555,2]
[367267923,1750722691648,-500.0,0.00023555,2]
[367267924,1750722691658,-500.0,0.00023555,2]
[367267925,1750722691667,-500.0,0.00023555,2]
[367267926,1750722691676,-500.0,0.00023555,2]
[367267927,1750722691689,-500.0,0.00023555,2]
[367267928,1750722691698,-500.0,0.00023555,2]
[367267929,1750722691709,-500.0,0.00023555,2]
[367267930,1750722691718,-500.0,0.00023555,2]
[367267931,1750722691728,-500.0,0.00023555,2]
[367267932,1750722691738,-500.0,0.00023555,2]
[367267933,1750722691749,-153.756277,0.00023555,7]
[367267934,1750722691758,-153.756277,0.00023555,7]
[367267935,1750722691769,-151.0,0.00023555,7]
[367267936,1750722691778,-768.02,0.0002356,2]
[367267937,1750722691789,-768.02,0.0002356,2]
[367267938,1750722691799,-1377.576921,0.0002356,7]
[367267939,1750722691808,-1377.576921,0.0002356,7]
[367267940,1750722691817,-4560.06,0.0002356,2]
[367267941,1750722691827,-4560.06,0.0002356,2]
[367267942,1750722691839,-627.28,0.0002356,2]
[367267943,1750722691848,-627.28,0.0002356,2]
[367267944,1750722691857,-490.0,0.00023561,2]
[367267945,1750722691867,-490.0,0.00023561,2]
[367267946,1750722691876,-490.0,0.00023561,2]
[367267947,1750722691885,-544.01,0.00023561,2]
[367267948,1750722691895,-490.0,0.00023561,2]
[367267949,1750722691904,-490.0,0.00023561,2]
[367267950,1750722691913,-490.0,0.00023561,2]
[367267951,1750722691923,-490.0,0.00023561,2]
[367267952,1750722691934,-490.0,0.00023561,2]
[367267953,1750722691944,-490.0,0.00023561,2]
[367267954,1750722691955,-490.0,0.00023561,2]
[367267955,1750722691965,-769.985057,0.00023561,2]
[367267956,1750722691974,-490.0,0.00023561,2]
[367267957,1750722691985,-490.0,0.00023561,2]
[367267958,1750722691994,-846.230061,0.00023561,2]
[367267959,1750722692004,-490.0,0.00023561,2]
[367267960,1750722692014,-2887.656586,0.00023561,2]
[367267961,1750722692025,-490.0,0.00023561,2]
[367267962,1750722692034,-490.0,0.00023561,2]
[367267963,1750722692044,-490.0,0.00023561,2]
[367267964,1750722692053,-490.0,0.00023561,2]
[367267965,1750722692062,-381.28411843,0.00023561,2]
[367267966,1750722692073,-490.0,0.00023561,2]
[367267967,1750722692083,-490.0,0.00023561,2]
[367267968,1750722692092,-565.9,0.00023561,2]
[367267969,1750722692102,-490.0,0.00023561,2]
[367267970,1750722692111,-490.0,0.00023561,2]
[367267971,1750722692121,-713.41,0.00023561,2]
[367267972,1750722692131,-828.92,0.00023561,2]
[367267973,1750722692140,-490.0,0.00023561,2]
[367267974,1750722692151,-1068.05,0.00023561,2]
[367267975,1750722692160,-490.0,0.00023561,2]
[367267976,1750722692170,-490.0,0.00023561,2]
[367267977,1750722692179,-490.0,0.00023561,2]
[367267978,1750722692188,-490.0,0.00023561,2]
[367267979,1750722692198,-490.0,0.00023561,2]
[367267980,1750722692208,-459.94558522,0.00023561,2]
[367267981,1750722692219,-500.18,0.00023561,2]
[367267982,1750722692228,-716.27,0.00023561,2]
[367267983,1750722692238,-545.2,0.00023561,2]
[367267984,1750722692247,-552.43,0.00023561,2]
[367267985,1750722692256,-191.58240218,0.00023561,2]
[367267986,1750722692266,-601.5,0.00023561,2]
[367267987,1750722692276,-490.0,0.00023561,2]
[367267988,1750722692285,-490.0,0.00023561,2]
[367267989,1750722692295,-490.0,0.00023561,2]
[367267990,1750722692304,-611.92,0.00023561,2]
[367267991,1750722692314,-490.0,0.00023561,2]
[367267992,1750722692324,-952.95,0.00023561,2]
[367267993,1750722692333,-718.57,0.00023561,2]
[367267994,1750722692342,-586.94564573,0.00023561,2]
[367267995,1750722692352,-490.0,0.00023561,2]
[367267996,1750722692361,-490.0,0.00023561,2]
[367267997,1750722692371,-757.18,0.00023561,2]
[367267998,1750722692380,-679.45,0.00023561,2]
[367267999,1750722692391,-514.37,0.00023561,2]
[367268000,1750722692404,-1110.86,0.00023561,2]
[367268001,1750722692413,-490.0,0.00023561,2]
[367268002,1750722692423,-639.7,0.00023561,2]
[367268003,1750722692432,-505.49,0.00023561,2]
[367268004,1750722692442,-490.0,0.00023561,2]
[367268005,1750722692452,-490.0,0.00023561,2]
[367268006,1750722692461,-490.0,0.00023561,2]
[367268007,1750722692472,-582.87,0.00023561,2]
[367268008,1750722692482,-490.0,0.00023561,2]
[367268009,1750722692492,-751.41,0.00023561,2]
[367268010,1750722692502,-490.0,0.00023561,2]
[367268011,1750722692512,-490.0,0.00023561,2]
[367268012,1750722692521,-980.74,0.00023561,2]
[367268013,1750722692531,-554.04,0.00023561,2]
[367268014,1750722692540,-609.37,0.00023561,2]
[367268015,1750722692550,-490.0,0.00023561,2]
[367268016,1750722692560,-533.71,0.00023561,2]
[367268017,1750722692570,-490.0,0.00023561,2]
[367268018,1750722692579,-849.14,0.00023561,2]
[367268019,1750722692589,-490.0,0.00023561,2]
[367268020,1750722692598,-490.0,0.00023561,2]
[367268021,1750722692608,-491.0,0.00023561,2]
[367268022,1750722692618,-490.0,0.00023561,2]
[367268023,1750722692627,-490.0,0.00023561,2]
[367268024,1750722692637,-1013.16,0.00023561,2]
[367268025,1750722692649,-490.0,0.00023561,2]
[367268026,1750722692658,-490.0,0.00023561,2]
[367268027,1750722692667,-490.0,0.00023561,2]
[367268028,1750722692677,-490.0,0.00023561,2]
[367268029,1750722692687,-780.51,0.00023561,2]
[367268030,1750722692697,-579.65,0.00023561,2]
[367268031,1750722692707,-869.78,0.00023561,2]
[367268032,1750722692716,-660.96,0.00023561,2]
[367268033,1750722692725,-627.48,0.00023561,2]
[367268034,1750722692735,-593.95,0.00023561,2]
[367268035,1750722692745,-633.11,0.00023561,2]
[367268036,1750722692754,-785.73,0.00023561,2]
[367268037,1750722692764,-490.0,0.00023561,2]
[367268038,1750722692774,-490.0,0.00023561,2]
[367268039,1750722692783,-490.0,0.00023561,2]
[367268040,1750722692793,-490.0,0.00023561,2]
[367268041,1750722692802,-918.6,0.00023561,2]
[367268042,1750722692811,-490.0,0.00023561,2]
[367268043,1750722692821,-490.0,0.00023561,2]
[367268044,1750722692830,-490.0,0.00023561,2]
[367268045,1750722692847,-497.36,0.00023561,2]
[367268046,1750722692858,-490.0,0.00023561,2]
[367268047,1750722692869,-589.72,0.00023561,2]
[367268048,1750722692879,-602.51,0.00023561,2]
[367268049,1750722692888,-759.11,0.00023561,2]
[367268050,1750722692898,-531.11,0.00023561,2]
[367268051,1750722692908,-502.6,0.00023561,2]
[367268052,1750722692918,-1316.83,0.00023561,2]
[367268053,1750722692928,-975.58,0.00023561,2]
[367268054,1750722692938,-949.61,0.00023561,2]
[367268055,1750722692947,-490.0,0.00023561,2]
[367268056,1750722692956,-490.0,0.00023561,2]
[367268057,1750722692967,-653.64,0.00023561,2]
[367268058,1750722692977,-490.0,0.00023561,2]
[367268059,1750722692986,-490.0,0.00023561,2]
[367268060,1750722692996,-490.0,0.00023561,2]
[367268061,1750722693005,-490.0,0.00023561,2]
[367268062,1750722693016,-648.14,0.00023561,2]
[367268063,1750722693026,-490.0,0.00023561,2]
[367268064,1750722693036,-686.78,0.00023561,2]
[367268065,1750722693047,-556.82,0.00023561,2]
[367268066,1750722693058,-674.79,0.00023561,2]
[367268067,1750722693069,-1024.07,0.00023561,2]
[367268068,1750722693080,-624.84,0.00023561,2]
[367268069,1750722693090,-490.0,0.00023561,2]
[367268070,1750722693100,-490.0,0.00023561,2]
[367268071,1750722693110,-678.9,0.00023561,2]
[367268072,1750722693120,-490.0,0.00023561,2]
[367268073,1750722693130,-490.0,0.00023561,2]
[367268074,1750722693140,-490.0,0.00023561,2]
[367268075,1750722693150,-1001.69,0.00023561,2]
[367268076,1750722693160,-490.0,0.00023561,2]
[367268077,1750722693170,-490.0,0.00023561,2]
[367268078,1750722693180,-490.0,0.00023561,2]
[367268079,1750722693190,-737.47,0.00023561,2]
[367268080,1750722693200,-575.57,0.00023561,2]
[367268081,1750722693210,-490.0,0.00023561,2]
[367268082,1750722693220,-490.0,0.00023561,2]
[367268083,1750722693230,-490.0,0.00023561,2]
[367268084,1750722693239,-490.0,0.00023561,2]
[367268085,1750722693249,-624.47,0.00023561,2]
[367268086,1750722693258,-490.0,0.00023561,2]
[367268087,1750722693269,-505.59,0.00023561,2]
[367268088,1750722693278,-490.0,0.00023561,2]
[367268089,1750722693287,-664.7,0.00023561,2]
[367268090,1750722693297,-490.0,0.00023561,2]
[367268091,1750722693307,-490.0,0.00023561,2]
[367268092,1750722693317,-307.66596833,0.00023561,2]
[367268093,1750722693327,-502.1,0.00023561,2]
[367268094,1750722693336,-490.0,0.00023561,2]
[367268095,1750722693346,-490.0,0.00023561,2]
[367268096,1750722693356,-831.47,0.00023561,2]
[367268097,1750722693366,-490.0,0.00023561,2]
[367268098,1750722693376,-889.99,0.00023561,2]
[367268099,1750722693386,-574.36,0.00023561,2]
[367268100,1750722693396,-644.55,0.00023561,2]
[367268101,1750722693406,-891.28,0.00023561,2]
[367268102,1750722693417,-1024.42,0.00023561,2]
[367268103,1750722693427,-490.0,0.00023561,2]
[367268104,1750722693436,-175.470343,0.00023561,7]
[367268105,1750722693446,-490.0,0.00023561,2]
[367268106,1750722693456,-490.0,0.00023561,2]
[367268107,1750722693466,-1009.98,0.00023561,2]
[367268108,1750722693477,-490.0,0.00023561,2]
[367268109,1750722693487,-1140.07,0.00023561,2]
[367268110,1750722693497,-490.0,0.00023561,2]
[367268111,1750722693507,-809.41,0.00023561,2]
[367268112,1750722693517,-490.0,0.00023561,2]
[367268113,1750722693527,-490.0,0.00023561,2]
[367268114,1750722693537,-490.0,0.00023561,2]
[367268115,1750722693547,-490.0,0.00023561,2]
[367268116,1750722693557,-490.0,0.00023561,2]
[367268117,1750722693568,-863.02,0.00023561,2]
[367268118,1750722693578,-707.74,0.00023561,2]
[367268119,1750722693588,-490.0,0.00023561,2]
[367268120,1750722693598,-490.0,0.00023561,2]
[367268121,1750722693608,-524.66,0.00023561,2]
[367268122,1750722693618,-490.0,0.00023561,2]
[367268123,1750722693627,-490.0,0.00023561,2]
[367268124,1750722693637,-490.0,0.00023561,2]
[367268125,1750722693648,-490.0,0.00023561,2]
[367268126,1750722693657,-490.0,0.00023561,2]
[367268127,1750722693668,-743.33,0.00023561,2]
[367268128,1750722693678,-701.07,0.00023561,2]
[367268129,1750722693688,-490.0,0.00023561,2]
[367268130,1750722693698,-8500.71,0.00023561,2]
[367268131,1750722693708,-490.0,0.00023561,2]
[367268132,1750722693718,-490.0,0.00023561,2]
[367268133,1750722693728,-726.9,0.00023561,2]
[367268134,1750722693738,-709.26,0.00023561,2]
[367268135,1750722693749,-866.14,0.00023561,2]
[367268136,1750722693758,-658.73,0.00023561,2]
[367268137,1750722693768,-490.0,0.00023561,2]
[367268138,1750722693778,-490.0,0.00023561,2]
[367268139,1750722693788,-668.39,0.00023561,2]
[367268140,1750722693798,-520.15,0.00023561,2]
[367268141,1750722693808,-890.8,0.00023561,2]
[367268142,1750722693819,-1817.04,0.00023561,2]
[367268143,1750722693829,-490.0,0.00023561,2]
[367268144,1750722693843,-490.0,0.00023561,2]
[367268145,1750722693852,-490.0,0.00023561,2]
[367268146,1750722693863,-490.0,0.00023561,2]
[367268147,1750722693873,-660.76,0.00023561,2]
[367268148,1750722693883,-889.57,0.00023561,2]
[367268149,1750722693893,-852.61,0.00023561,2]
[367268150,1750722693904,-639.15,0.00023561,2]
[367268151,1750722693914,-725.63,0.00023561,2]
[367268152,1750722693924,-1036.14,0.00023561,2]
[367268153,1750722693935,-490.0,0.00023561,2]
[367268154,1750722693945,-490.0,0.00023561,2]
[367268155,1750722693955,-490.0,0.00023561,2]
[367268156,1750722693965,-250.0,0.00023561,2]
[367268157,1750722693976,-151.0,0.00023561,7]
[367268158,1750722693986,-687.15,0.00023561,2]
[367268159,1750722693996,-3451.37,0.00023561,2]
[367268160,1750722694006,-2016.76,0.00023561,2]
[367268161,1750722694016,-490.0,0.00023561,2]
[367268162,1750722694026,-490.0,0.00023561,2]
[367268163,1750722694036,-1486.84,0.00023561,2]
[367268164,1750722694047,-490.0,0.00023561,2]
[367268165,1750722694057,-2600.88,0.00023561,2]
[367268166,1750722694067,-490.0,0.00023561,2]
[367268167,1750722694078,-852.3,0.00023561,2]
[367268168,1750722694088,-490.0,0.00023561,2]
[367268169,1750722694098,-490.0,0.00023561,2]
[367268170,1750722694109,-891.95,0.00023561,2]
[367268171,1750722694326,-490.0,0.00023561,2]
[367268172,1750722694342,-543.07,0.00023561,2]
[367268173,1750722694352,-490.0,0.00023561,2]
[367268174,1750722694362,-490.0,0.00023561,2]
[367268175,1750722694372,-490.0,0.00023561,2]
[367268176,1750722694381,-533.43,0.00023561,2]
[367268177,1750722694391,-685.3,0.00023561,2]
[367268178,1750722694401,-490.0,0.00023561,2]
[367268179,1750722694411,-196.76989942,0.00023561,2]
[367268180,1750722694421,-490.0,0.00023561,2]
[367268181,1750722694430,-490.0,0.00023561,2]
[367268182,1750722694439,-1059.99,0.00023561,2]
[367268183,1750722694449,-1239.33,0.00023561,2]
[367268184,1750722694458,-1225.41,0.00023561,2]
[367268185,1750722694468,-1859.87,0.00023561,2]
[367268186,1750722694478,-747.66,0.00023561,2]
[367268187,1750722694488,-3515.34,0.00023561,2]
[367268188,1750722694498,-490.0,0.00023561,2]
[367268189,1750722694508,-490.0,0.00023561,2]
[367268190,1750722694518,-2258.43,0.00023561,2]
[367268191,1750722694528,-644.73,0.00023561,2]
[367268192,1750722694537,-1049.17,0.00023561,2]
[367268193,1750722694547,-588.18,0.00023561,2]
[367268194,1750722694556,-1516.29,0.00023561,2]
[367268195,1750722694566,-490.0,0.00023561,2]
[367268196,1750722694576,-68697.11,0.00023561,2]
[367268197,1750722694586,-936.03,0.00023561,2]
[367268198,1750722694596,-1139.14,0.00023561,2]
[367268199,1750722694606,-490.0,0.00023561,2]
[367268200,1750722694616,-803.72,0.00023561,2]
[367268201,1750722694626,-647.9,0.00023561,2]
[367268202,1750722694636,-1377.576921,0.00023561,7]
[367268203,1750722694647,-516.62,0.00023561,2]
[367268204,1750722694656,-1134.51,0.00023561,2]
[367268205,1750722694665,-1410.85,0.00023561,2]
[367268206,1750722694675,-498.27,0.00023561,2]
[367268207,1750722694684,-490.0,0.00023561,2]
[367268208,1750722694694,-971.99,0.00023561,2]
[367268209,1750722694704,-1377.576921,0.00023561,7]
[367268210,1750722694713,-490.0,0.00023561,2]
[367268211,1750722694723,-613.92,0.00023561,2]
[367268212,1750722694732,-527.41,0.00023561,2]
[367268213,1750722694742,-490.0,0.00023561,2]
[367268214,1750722694751,-277.52320346,0.00023561,2]
[367268215,1750722694762,-854.15,0.00023561,2]
[367268216,1750722694771,-1578.51,0.00023561,2]
[367268217,1750722694781,-502.06,0.00023561,2]
[367268218,1750722694791,-1004.78,0.00023561,2]
[367268219,1750722694800,-722.59,0.00023561,2]
[367268220,1750722694809,-1149.68,0.00023561,2]
[367268221,1750722694819,-490.0,0.00023561,2]
[367268222,1750722694828,-1046.97,0.00023561,2]
[367268223,1750722694842,-490.0,0.00023561,2]
[367268224,1750722694851,-490.0,0.00023561,2]
[367268225,1750722694861,-581.05,0.00023561,2]
[367268226,1750722694870,-1200.68,0.00023561,2]
[367268227,1750722694881,-694.62,0.00023561,2]
[367268228,1750722694891,-490.0,0.00023561,2]
[367268229,1750722694901,-4672.05,0.00023561,2]
[367268230,1750722694912,-507.86,0.00023561,2]
[367268231,1750722694922,-684.55,0.00023561,2]
[367268232,1750722694931,-1066.19,0.00023561,2]
[367268233,1750722694941,-4445.32,0.00023561,2]
[367268234,1750722694951,-1782.62,0.00023561,2]
[367268235,1750722694960,-490.0,0.00023561,2]
[367268236,1750722694970,-869.16,0.00023561,2]
[367268237,1750722694981,-490.0,0.00023561,2]
[367268238,1750722694992,-993.54,0.00023561,2]
[367268239,1750722695002,-490.0,0.00023561,2]
[367268240,1750722695012,-1775.91,0.00023561,2]
[367268241,1750722695021,-5169.32,0.00023561,2]
[367268242,1750722695031,-775.96,0.00023561,2]
[367268243,1750722695041,-641.17,0.00023561,2]
[367268244,1750722695050,-552.60437214,0.00023561,2]
[367268245,1750722695060,-1008.32,0.00023561,2]
[367268246,1750722695070,-983.36,0.00023561,2]
[367268247,1750722695079,-490.0,0.00023561,2]
[367268248,1750722695089,-1881.06,0.00023561,2]
[367268249,1750722695099,-829.17,0.00023561,2]
[367268250,1750722695108,-1812.42,0.00023561,2]
[367268251,1750722695117,-834.28,0.00023561,2]
[367268252,1750722695127,-704.39,0.00023561,2]
[367268253,1750722695136,-622.57,0.00023561,2]
[367268254,1750722695147,-857.91,0.00023561,2]
[367268255,1750722695157,-1188.59,0.00023561,2]
[367268256,1750722695166,-495.31,0.00023561,2]
[367268257,1750722695176,-153.756277,0.00023561,7]
[367268258,1750722695185,-798.05,0.00023561,2]
[367268259,1750722695195,-2746.66,0.00023561,2]
[367268260,1750722695204,-490.0,0.00023561,2]
[367268261,1750722695214,-1013.71,0.00023561,2]
[367268262,1750722695224,-153.756277,0.00023561,7]
[367268263,1750722695234,-769.79,0.00023561,2]
[367268264,1750722695244,-1102.34,0.00023561,2]
[367268265,1750722695253,-490.0,0.00023561,2]
[367268266,1750722695263,-2843.97,0.00023561,2]
[367268267,1750722695273,-793.99,0.00023561,2]
[367268268,1750722695283,-490.0,0.00023561,2]
[367268269,1750722695293,-151.0,0.00023561,7]
[367268270,1750722695302,-21749.08,0.00023561,2]
[367268271,1750722695312,-700.64,0.00023561,2]
[367268272,1750722695321,-985.74,0.00023561,2]
[367268273,1750722695331,-576.52,0.00023561,2]
[367268274,1750722695340,-702.04,0.00023561,2]
[367268275,1750722695350,-736.73,0.00023561,2]
[367268276,1750722695359,-1301.35,0.00023561,2]
[367268277,1750722695369,-1417.45,0.00023561,2]